lending/lending_fUSD_20260110
["ID","MTS","AMOUNT","RATE_DAILY","PERIOD"]
[401188844,1768030251711,-300.0,0.00017999,2]
[401188845,1768030251721,-276.645,0.00017999,2]
[401188846,1768030251736,-300.0,0.00017999,2]
[401188847,1768030251746,-244.63188995,0.00017999,2]
[401188848,1768030251755,-11563.77530464,0.00017999,2]
[401188849,1768030251764,-500.0,0.00017999,2]
[401188850,1768030251774,-500.0,0.00017999,2]
[401188851,1768030251784,-359.11221161,0.00017999,2]
[401188852,1768030251793,-300.0,0.00017999,2]
[401188853,1768030251802,-666.0,0.00017999,2]
[401188854,1768030251811,-155.42566121,0.00018,2]
[401188855,1768030251821,-209.66369783,0.00018,2]
[401188856,1768030251836,-216.2799415,0.00018,2]
[401188857,1768030251846,-196.21798024,0.00018,2]
[401188858,1768030251856,-188.04162909,0.00018,2]
[401188859,1768030251866,-298.52493072,0.00018,2]
[401188860,1768030251876,-156.68286018,0.00018,2]
[401188861,1768030251886,-223.10788253,0.00018,2]
[401188862,1768030251896,-178.17676299,0.00018,2]
[401188863,1768030251908,-216.79771002,0.00018,2]
[401188864,1768030251919,-180.00561417,0.00018,2]
[401188865,1768030251929,-247.12115074,0.00018,2]
[401188866,1768030251939,-157.59943203,0.00018,2]
[401188867,1768030251951,-231.22039699,0.00018,2]
[401188868,1768030251971,-252.12379273,0.00018,2]
[401188869,1768030251990,-283.67078746,0.00018,2]
[401188870,1768030252000,-441632.7301123,0.00018,2]
[401188871,1768030252011,-5346.06634884,0.00018,2]
[401188872,1768030252020,-656793.29565246,0.00018,2]
[401188873,1768030252659,-1800.0,0.00018,2]
[401188874,1768030252671,-9014.2,0.00018,2]
[401188875,1768030252683,-45000.00000002,0.00018,2]
[401188876,1768030252906,-598398.69133362,0.00018,2]
[401188877,1768030252919,-175480.76954792,0.00018,2]
[401188878,1768030252931,-18740.0,0.00018,2]
[401188879,1768030253080,-6632.7110064,0.00018,2]
[401188880,1768030268476,500.0,0.00019135,30]
[401188881,1768030269058,500.0,0.00019135,30]
[401188882,1768030269624,512.66079463,0.00019135,30]
[401188883,1768030387463,1500.0,0.00023,120]
[401188893,1768031432118,-207.92,0.00015389,2]
[401188894,1768031432128,-166.66,0.00015593,2]
[401188895,1768031432137,-171.2,0.000156,2]
[401188896,1768031432147,-89.03829391,0.000159,2]
[401188897,1768031432159,-72.96170609,0.000159,2]
[401188898,1768031432168,-166.66,0.00015922,2]
[401188899,1768031432178,-151.0,0.00016018,2]
[401188900,1768031432187,-151.0,0.00016018,2]
[401188901,1768031432196,-151.0,0.00016018,2]
[401188902,1768031432205,-151.0,0.00016018,2]
[401188903,1768031432215,-151.0,0.00016025,2]
[401188904,1768031432224,-151.0,0.00016025,2]
[401188905,1768031432233,-300.0,0.00016048,2]
[401188906,1768031432243,-1200.0,0.00016048,2]
[401188907,1768031432252,-169.23290559,0.00016049,2]
[401188908,1768031432261,-306.48910681,0.00016049,2]
[401188909,1768031432270,-500.0,0.00016049,2]
[401188910,1768031432279,-500.0,0.00016049,2]
[401188911,1768031432288,-172.12656049,0.00016049,2]
[401188912,1768031432298,-1132.39179641,0.0001605,2]
[401188913,1768031432309,-364.52829314,0.0001605,2]
[401188914,1768031432320,-6514.80308285,0.0001605,2]
[401188916,1768031432343,-863.70220047,0.0001605,2]
[401188919,1768031438191,-40419.15460232,0.0001605,2]
[401188920,1768031438202,-305.96311241,0.0001605,2]
[401188921,1768031438213,-7410.48326695,0.0001605,2]
[401188922,1768031438232,-642.12284043,0.0001605,2]
[401188927,1768031440356,-142512.04090425,0.0001605,2]
[401188928,1768031440368,-1372.94995013,0.0001605,2]
[401188929,1768031440379,-1536.36055502,0.0001605,2]
[401188930,1768031440512,-796925.49939562,0.0001605,2]
[401188931,1768031440523,-2500.0,0.0001605,2]
[401188932,1768031440532,-170.32473985,0.00016064,2]
[401188933,1768031440542,-594.676,0.0001615,2]
[401188934,1768031440553,-1712.34976734,0.0001615,2]
[401188935,1768031440563,-190.53827758,0.000162,2]
[401188936,1768031440574,-196.55099073,0.000162,2]
[401188937,1768031440583,-150.0,0.000162,2]
[401188938,1768031440593,-150.0,0.000162,2]
[401188939,1768031440603,-161.3110552,0.000162,2]
[401188940,1768031440613,-150.0,0.000162,2]
[401188941,1768031440623,-150.0,0.000162,2]
[401188942,1768031440633,-150.0,0.000162,2]
[401188943,1768031440643,-170.88856341,0.000162,2]
[401188944,1768031440652,-150.0,0.000162,2]
[401188945,1768031440661,-150.0,0.000162,2]
[401188946,1768031440671,-150.0,0.000162,2]
[401188947,1768031440681,-150.0,0.000162,2]
[401188948,1768031440690,-150.0,0.000162,2]
[401188949,1768031440700,-190.53827758,0.00016218,2]
[401188950,1768031440710,-196.55099073,0.00016218,2]
[401188951,1768031440719,-161.3110552,0.00016218,2]
[401188952,1768031440729,-170.88856341,0.00016218,2]
[401188953,1768031440739,-150.0,0.00016219,2]
[401188954,1768031440748,-150.0,0.0001622,2]
[401188955,1768031440758,-190.53827758,0.00016236,2]
[401188956,1768031440768,-196.55099073,0.00016236,2]
[401188957,1768031440777,-161.3110552,0.00016236,2]
[401188958,1768031440786,-170.88856341,0.00016236,2]
[401188959,1768031440795,-150.0,0.00016239,2]
[401188960,1768031440805,-150.0,0.0001624,2]
[401188961,1768031440814,-150.0,0.00016241,2]
[401188962,1768031440823,-150.0,0.00016246,2]
[401188963,1768031440832,-166.66,0.0001625,2]
[401188964,1768031440841,-190.53827758,0.00016255,2]
[401188965,1768031440850,-196.55099073,0.00016255,2]
[401188966,1768031440859,-161.3110552,0.00016255,2]
[401188967,1768031440868,-150.0,0.00016255,2]
[401188968,1768031440877,-170.88856341,0.00016255,2]
[401188969,1768031440886,-150.0,0.00016258,2]
[401188970,1768031440896,-150.0,0.00016261,2]
[401188971,1768031440905,-190.53827758,0.00016273,2]
[401188972,1768031440914,-196.55099073,0.00016273,2]
[401188973,1768031440923,-161.3110552,0.00016273,2]
[401188974,1768031440932,-170.88856341,0.00016273,2]
[401188975,1768031440941,-150.0,0.00016277,2]
[401188976,1768031440951,-150.0,0.0001628,2]
[401188977,1768031440960,-150.0,0.00016282,2]
[401188978,1768031440969,-150.0,0.0001629,2]
[401188979,1768031440978,-190.53827758,0.00016291,2]
[401188980,1768031440987,-196.55099073,0.00016291,2]
[401188981,1768031440996,-161.3110552,0.00016291,2]
[401188982,1768031441006,-170.88856341,0.00016291,2]
[401188983,1768031441015,-150.0,0.00016292,2]
[401188984,1768031441025,-150.0,0.00016297,2]
[401188985,1768031441036,-162.0,0.000163,2]
[401188986,1768031441046,-162.0,0.000163,2]
[401188987,1768031441055,-150.0,0.00016302,2]
[401188988,1768031441064,-190.53827758,0.00016309,2]
[401188989,1768031441074,-196.55099073,0.00016309,2]
[401188990,1768031441084,-161.3110552,0.00016309,2]
[401188991,1768031441093,-150.0,0.00016309,2]
[401188992,1768031441102,-170.88856341,0.00016309,2]
[401188993,1768031441111,-150.0,0.00016316,2]
[401188994,1768031441121,-150.0,0.0001632,2]
[401188995,1768031441131,-150.0,0.00016323,2]
[401188996,1768031441140,-190.53827758,0.00016327,2]
[401188997,1768031441149,-196.55099073,0.00016327,2]
[401188998,1768031441159,-161.3110552,0.00016327,2]
[401188999,1768031441168,-170.88856341,0.00016327,2]
[401189000,1768031441178,-150.0,0.00016335,2]
[401189001,1768031441187,-150.0,0.00016338,2]
[401189002,1768031441196,-150.0,0.00016343,2]
[401189003,1768031441205,-1712.34976734,0.00016344,2]
[401189004,1768031441215,-190.53827758,0.00016345,2]
[401189005,1768031441224,-196.55099073,0.00016345,2]
[401189006,1768031441234,-161.3110552,0.00016345,2]
[401189007,1768031441243,-170.88856341,0.00016345,2]
[401189008,1768031441253,-150.0,0.00016355,2]
[401189009,1768031441262,-500.0,0.00016356,2]
[401189010,1768031441271,-179.19,0.00016356,2]
[401189011,1768031441280,-556.55,0.00016356,2]
[401189012,1768031441289,-325.87,0.00016356,2]
[401189013,1768031441298,-156.55,0.00016356,2]
[401189014,1768031441307,-304.18,0.00016356,2]
[401189015,1768031441317,-350.52,0.00016356,2]
[401189016,1768031441326,-466.97,0.00016356,2]
[401189017,1768031441335,-150.0,0.0001636,2]
[401189018,1768031441344,-190.53827758,0.00016364,2]
[401189019,1768031441354,-196.55099073,0.00016364,2]
[401189020,1768031441363,-161.3110552,0.00016364,2]
[401189021,1768031441374,-150.0,0.00016364,2]
[401189022,1768031441383,-170.88856341,0.00016364,2]
[401189023,1768031441393,-150.0,0.00016364,2]
[401189024,1768031441402,-170.32473985,0.0001637,2]
[401189025,1768031441411,-150.0,0.00016374,2]
[401189026,1768031441421,-150.0,0.0001638,2]
[401189027,1768031441431,-190.53827758,0.00016382,2]
[401189028,1768031441440,-196.55099073,0.00016382,2]
[401189029,1768031441449,-161.3110552,0.00016382,2]
[401189030,1768031441459,-170.88856341,0.00016382,2]
[401189031,1768031441469,-150.0,0.00016384,2]
[401189032,1768031441478,-150.0,0.00016385,2]
[401189033,1768031441488,-150.0,0.00016394,2]
[401189034,1768031441498,-190.53827758,0.000164,2]
[401189035,1768031441511,-196.55099073,0.000164,2]
[401189036,1768031441521,-161.3110552,0.000164,2]
[401189037,1768031441530,-170.88856341,0.000164,2]
[401189038,1768031441539,-150.0,0.000164,2]
[401189039,1768031441550,-150.0,0.00016405,2]
[401189040,1768031441559,-500.0,0.00016411,2]
[401189041,1768031441570,-150.0,0.00016413,2]
[401189042,1768031441581,-190.53827758,0.00016418,2]
[401189043,1768031441590,-196.55099073,0.00016418,2]
[401189044,1768031441600,-161.3110552,0.00016418,2]
[401189045,1768031441609,-150.0,0.00016418,2]
[401189046,1768031441619,-170.88856341,0.00016418,2]
[401189047,1768031441629,-200.0,0.00016422,2]
[401189048,1768031441638,-150.0,0.00016425,2]
[401189049,1768031441648,-150.0,0.00016431,2]
[401189050,1768031441657,-150.0,0.00016432,2]
[401189051,1768031441667,-190.53827758,0.00016436,2]
[401189052,1768031441676,-196.55099073,0.00016436,2]
[401189053,1768031441686,-161.3110552,0.00016436,2]
[401189054,1768031441695,-170.88856341,0.00016436,2]
[401189055,1768031441704,-500.0,0.00016438,2]
[401189056,1768031441714,-500.0,0.00016438,2]
[401189057,1768031441723,-500.0,0.00016438,2]
[401189058,1768031441733,-500.0,0.00016438,2]
[401189059,1768031441742,-500.0,0.00016438,2]
[401189060,1768031441751,-500.0,0.00016438,2]
[401189061,1768031441760,-500.0,0.00016438,2]
[401189062,1768031441770,-500.0,0.00016438,2]
[401189063,1768031441779,-500.0,0.00016438,2]
[401189064,1768031441789,-500.0,0.00016438,2]
[401189065,1768031441798,-500.0,0.00016438,2]
[401189066,1768031441808,-500.0,0.00016438,2]
[401189067,1768031441817,-500.0,0.00016438,2]
[401189068,1768031441827,-500.0,0.00016438,2]
[401189069,1768031441836,-500.0,0.00016438,2]
[401189070,1768031441845,-155.90809256,0.00016438,2]
[401189071,1768031441855,-500.0,0.00016438,2]
[401189072,1768031441864,-500.0,0.00016438,2]
[401189073,1768031441874,-500.0,0.00016438,2]
[401189074,1768031441883,-500.0,0.00016438,2]
[401189075,1768031441893,-500.0,0.00016438,2]
[401189076,1768031441902,-500.0,0.00016438,2]
[401189077,1768031441911,-600.0,0.00016438,2]
[401189078,1768031441921,-8860.89,0.00016438,2]
[401189079,1768031441931,-567.0,0.00016438,2]
[401189080,1768031441940,-150.0,0.0001644,2]
[401189081,1768031441949,-150.0,0.00016445,2]
[401189082,1768031441959,-150.0,0.00016452,2]
[401189083,1768031441968,-190.53827758,0.00016455,2]
[401189084,1768031441977,-196.55099073,0.00016455,2]
[401189085,1768031441987,-161.3110552,0.00016455,2]
[401189086,1768031441996,-170.88856341,0.00016455,2]
[401189087,1768031442006,-150.0,0.00016466,2]
[401189088,1768031442017,-150.0,0.0001647,2]
[401189089,1768031442026,-150.0,0.00016471,2]
[401189090,1768031442035,-190.53827758,0.00016473,2]
[401189091,1768031442045,-196.55099073,0.00016473,2]
[401189092,1768031442054,-161.3110552,0.00016473,2]
[401189093,1768031442063,-150.0,0.00016473,2]
[401189094,1768031442072,-170.88856341,0.00016473,2]
[401189095,1768031442082,-150.0,0.00016477,2]
[401189096,1768031442092,-150.0,0.0001648,2]
[401189097,1768031442102,-150.0,0.00016486,2]
[401189098,1768031442112,-150.0,0.0001649,2]
[401189099,1768031442121,-190.53827758,0.00016491,2]
[401189100,1768031442131,-196.55099073,0.00016491,2]
[401189101,1768031442140,-161.3110552,0.00016491,2]
[401189102,1768031442149,-170.88856341,0.00016491,2]
[401189103,1768031442159,-150.0,0.000165,2]
[401189104,1768031442168,-1000.0,0.000165,2]
[401189105,1768031442178,-1740.0035,0.000165,2]
[401189106,1768031442187,-150.0,0.00016507,2]
[401189107,1768031442196,-190.53827758,0.00016509,2]
[401189108,1768031442206,-196.55099073,0.00016509,2]
[401189109,1768031442215,-161.3110552,0.00016509,2]
[401189110,1768031442225,-170.88856341,0.00016509,2]
[401189111,1768031442234,-150.0,0.0001651,2]
[401189112,1768031442243,-150.0,0.0001652,2]
[401189113,1768031442253,-150.0,0.00016523,2]
[401189114,1768031442262,-190.53827758,0.00016527,2]
[401189115,1768031442273,-196.55099073,0.00016527,2]
[401189116,1768031442282,-161.3110552,0.00016527,2]
[401189117,1768031442291,-150.0,0.00016527,2]
[401189118,1768031442301,-170.88856341,0.00016527,2]
[401189119,1768031442310,-150.0,0.00016527,2]
[401189120,1768031442319,-150.0,0.00016529,2]
[401189121,1768031442328,-1712.34976734,0.00016539,2]
[401189122,1768031442337,-190.53827758,0.00016545,2]
[401189123,1768031442347,-196.55099073,0.00016545,2]
[401189124,1768031442356,-161.3110552,0.00016545,2]
[401189125,1768031442366,-170.88856341,0.00016545,2]
[401189126,1768031442376,-150.0,0.00016548,2]
[401189127,1768031442385,-150.0,0.00016548,2]
[401189128,1768031442395,-150.0,0.0001656,2]
[401189129,1768031442404,-150.0,0.0001656,2]
[401189130,1768031442415,-190.53827758,0.00016564,2]
[401189131,1768031442424,-196.55099073,0.00016564,2]
[401189132,1768031442433,-161.3110552,0.00016564,2]
[401189133,1768031442443,-170.88856341,0.00016564,2]
[401189134,1768031442453,-150.0,0.00016568,2]
[401189135,1768031442463,-150.0,0.00016568,2]
[401189136,1768031442472,-150.0,0.00016569,2]
[401189137,1768031442482,-166.66,0.00016578,2]
[401189138,1768031442491,-190.53827758,0.00016582,2]
[401189139,1768031442501,-196.55099073,0.00016582,2]
[401189140,1768031442515,-161.3110552,0.00016582,2]
[401189141,1768031442524,-150.0,0.00016582,2]
[401189142,1768031442534,-170.88856341,0.00016582,2]
[401189143,1768031442543,-150.0,0.00016587,2]
[401189144,1768031442554,-150.0,0.00016589,2]
[401189145,1768031442564,-1584.7,0.00016592,2]
[401189146,1768031442574,-190.53827758,0.000166,2]
[401189147,1768031442585,-196.55099073,0.000166,2]
[401189148,1768031442595,-161.3110552,0.000166,2]
[401189149,1768031442604,-170.88856341,0.000166,2]
[401189150,1768031442614,-150.0,0.000166,2]
[401189151,1768031442623,-150.0,0.00016606,2]
[401189152,1768031442633,-150.0,0.00016609,2]
[401189153,1768031442642,-150.0,0.00016615,2]
[401189154,1768031442652,-190.53827758,0.00016618,2]
[401189155,1768031442662,-196.55099073,0.00016618,2]
[401189156,1768031442671,-161.3110552,0.00016618,2]
[401189157,1768031442681,-170.88856341,0.00016618,2]
[401189158,1768031442690,-150.0,0.00016626,2]
[401189159,1768031442700,-150.0,0.0001663,2]
[401189160,1768031442709,-190.53827758,0.00016636,2]
[401189161,1768031442719,-196.55099073,0.00016636,2]
[401189162,1768031442729,-161.3110552,0.00016636,2]
[401189163,1768031442739,-150.0,0.00016636,2]
[401189164,1768031442748,-170.88856341,0.00016636,2]
[401189165,1768031442758,-150.0,0.0001664,2]
[401189166,1768031442767,-150.0,0.00016645,2]
[401189167,1768031442777,-150.0,0.0001665,2]
[401189168,1768031442786,-150.0,0.0001665,2]
[401189169,1768031442795,-150.0,0.0001665,2]
[401189170,1768031442805,-190.53827758,0.00016655,2]
[401189171,1768031442826,-196.55099073,0.00016655,2]
[401189172,1768031442849,-161.3110552,0.00016655,2]
[401189173,1768031442861,-170.88856341,0.00016655,2]
[401189174,1768031442872,-150.0,0.00016662,2]
[401189175,1768031442884,-150.0,0.00016665,2]
[401189176,1768031442894,-150.0,0.0001667,2]
[401189177,1768031442904,-190.53827758,0.00016673,2]
[401189178,1768031442915,-196.55099073,0.00016673,2]
[401189179,1768031442925,-161.3110552,0.00016673,2]
[401189180,1768031442936,-170.88856341,0.00016673,2]
[401189181,1768031442947,-170.32473985,0.00016676,2]
[401189182,1768031442956,-150.0,0.0001668,2]
[401189184,1768031442965,-150.0,0.00016684,2]
[401189185,1768031442975,-190.53827758,0.00016691,2]
[401189187,1768031442984,-196.55099073,0.00016691,2]
[401189189,1768031442994,-161.3110552,0.00016691,2]
[401189190,1768031443003,-150.0,0.00016691,2]
[401189191,1768031443012,-170.88856341,0.00016691,2]
[401189192,1768031443021,-150.0,0.00016691,2]
[401189193,1768031443030,-150.0,0.00016703,2]
[401189194,1768031443039,-150.0,0.00016708,2]
[401189195,1768031443049,-190.53827758,0.00016709,2]
[401189196,1768031443059,-196.55099073,0.00016709,2]
[401189197,1768031443068,-161.3110552,0.00016709,2]
[401189198,1768031443077,-170.88856341,0.00016709,2]
[401189199,1768031443086,-150.0,0.00016711,2]
[401189200,1768031443095,-150.0,0.0001672,2]
[401189201,1768031443105,-164.0,0.0001672,2]
[401189202,1768031443114,-150.0,0.00016723,2]
[401189203,1768031443123,-190.53827758,0.00016727,2]
[401189204,1768031443132,-196.55099073,0.00016727,2]
[401189205,1768031443143,-161.3110552,0.00016727,2]
[401189206,1768031443152,-170.88856341,0.00016727,2]
[401189207,1768031443162,-150.0,0.00016732,2]
[401189208,1768031443172,-1712.34976734,0.00016733,2]
[401189209,1768031443181,-150.0,0.0001674,2]
[401189210,1768031443191,-150.0,0.00016742,2]
[401189211,1768031443201,-190.53827758,0.00016745,2]
[401189212,1768031443210,-196.55099073,0.00016745,2]
[401189213,1768031443220,-161.3110552,0.00016745,2]
[401189214,1768031443229,-150.0,0.00016745,2]
[401189215,1768031443239,-170.88856341,0.00016745,2]
[401189216,1768031443248,-150.0,0.00016752,2]
[401189217,1768031443258,-150.0,0.00016754,2]
[401189218,1768031443267,-150.0,0.0001676,2]
[401189219,1768031443277,-150.0,0.00016761,2]
[401189220,1768031443287,-190.53827758,0.00016764,2]
[401189221,1768031443296,-196.55099073,0.00016764,2]
[401189222,1768031443306,-161.3110552,0.00016764,2]
[401189223,1768031443315,-170.88856341,0.00016764,2]
[401189224,1768031443325,-150.0,0.00016773,2]
[401189225,1768031443335,-150.0,0.00016781,2]
[401189226,1768031443344,-190.53827758,0.00016782,2]
[401189227,1768031443354,-196.55099073,0.00016782,2]
[401189228,1768031443364,-161.3110552,0.00016782,2]
[401189229,1768031443374,-170.88856341,0.00016782,2]
[401189230,1768031443383,-150.0,0.00016793,2]
[401189231,1768031443393,-190.53827758,0.000168,2]
[401189232,1768031443403,-196.55099073,0.000168,2]
[401189233,1768031443412,-150.0,0.000168,2]
[401189234,1768031443422,-150.0,0.000168,2]
[401189235,1768031443432,-161.3110552,0.000168,2]
[401189236,1768031443441,-150.0,0.000168,2]
[401189237,1768031443451,-170.88856341,0.000168,2]
[401189238,1768031443461,-150.0,0.000168,2]
[401189239,1768031443471,-150.0,0.000168,2]
[401189240,1768031443480,-150.0,0.000168,2]
[401189241,1768031443490,-150.0,0.00016814,2]
[401189242,1768031443499,-190.53827758,0.00016818,2]
[401189243,1768031443512,-196.55099073,0.00016818,2]
[401189244,1768031443523,-161.3110552,0.00016818,2]
[401189245,1768031443533,-170.88856341,0.00016818,2]
[401189246,1768031443543,-150.0,0.00016819,2]
[401189247,1768031443554,-150.0,0.0001683,2]
[401189248,1768031443563,-150.0,0.00016834,2]
[401189249,1768031443575,-190.53827758,0.00016836,2]
[401189250,1768031443586,-196.55099073,0.00016836,2]
[401189251,1768031443597,-161.3110552,0.00016836,2]
[401189252,1768031443607,-170.88856341,0.00016836,2]
[401189253,1768031443617,-150.0,0.00016839,2]
[401189254,1768031443627,-150.0,0.0001684,2]
[401189255,1768031443637,-150.0,0.00016846,2]
[401189256,1768031443646,-190.53827758,0.00016855,2]
[401189257,1768031443656,-196.55099073,0.00016855,2]
[401189258,1768031443666,-161.3110552,0.00016855,2]
[401189259,1768031443675,-150.0,0.00016855,2]
[401189260,1768031443685,-170.88856341,0.00016855,2]
[401189261,1768031443694,-150.0,0.00016855,2]
[401189262,1768031443705,-150.0,0.00016858,2]
[401189263,1768031443714,-190.53827758,0.00016873,2]
[401189264,1768031443724,-196.55099073,0.00016873,2]
[401189265,1768031443734,-161.3110552,0.00016873,2]
[401189266,1768031443744,-170.88856341,0.00016873,2]
[401189267,1768031443753,-150.0,0.00016875,2]
[401189268,1768031443764,-150.0,0.00016877,2]
[401189269,1768031443774,-150.0,0.0001688,2]
[401189270,1768031443783,-190.53827758,0.00016891,2]
[401189271,1768031443793,-196.55099073,0.00016891,2]
[401189272,1768031443803,-161.3110552,0.00016891,2]
[401189273,1768031443813,-170.88856341,0.00016891,2]
[401189274,1768031443823,-150.0,0.00016892,2]
[401189275,1768031443832,-150.0,0.00016895,2]
[401189276,1768031443842,-150.0,0.00016897,2]
[401189277,1768031443851,-162.0,0.000169,2]
[401189278,1768031443860,-162.0,0.000169,2]
[401189279,1768031443869,-162.0,0.000169,2]
[401189280,1768031443879,-166.66,0.00016906,2]
[401189281,1768031443889,-190.53827758,0.00016909,2]
[401189282,1768031443899,-196.55099073,0.00016909,2]
[401189283,1768031443909,-161.3110552,0.00016909,2]
[401189284,1768031443919,-150.0,0.00016909,2]
[401189285,1768031443929,-170.88856341,0.00016909,2]
[401189286,1768031443939,-150.0,0.00016916,2]
[401189287,1768031443948,-150.0,0.00016916,2]
[401189288,1768031443958,-150.0,0.0001692,2]
[401189289,1768031443968,-150.0,0.0001692,2]
[401189290,1768031443978,-190.53827758,0.00016927,2]
[401189291,1768031443988,-196.55099073,0.00016927,2]
[401189292,1768031443998,-161.3110552,0.00016927,2]
[401189293,1768031444008,-170.88856341,0.00016927,2]
[401189294,1768031444018,-1712.34976734,0.00016928,2]
[401189295,1768031444028,-1908.19922497,0.00016928,2]
[401189296,1768031444037,-150.0,0.00016935,2]
[401189297,1768031444047,-150.0,0.00016936,2]
[401189298,1768031444057,-150.0,0.00016938,2]
[401189299,1768031444066,-190.53827758,0.00016945,2]
[401189300,1768031444077,-196.55099073,0.00016945,2]
[401189301,1768031444094,-161.3110552,0.00016945,2]
[401189302,1768031444115,-170.88856341,0.00016945,2]
[401189303,1768031444131,-150.0,0.00016955,2]
[401189304,1768031444142,-150.0,0.00016957,2]
[401189305,1768031444153,-150.0,0.0001696,2]
[401189306,1768031444164,-190.53827758,0.00016964,2]
[401189307,1768031444175,-196.55099073,0.00016964,2]
[401189308,1768031444187,-161.3110552,0.00016964,2]
[401189309,1768031444198,-150.0,0.00016964,2]
[401189310,1768031444210,-170.88856341,0.00016964,2]
[401189311,1768031444221,-150.0,0.00016974,2]
[401189312,1768031444233,-150.0,0.00016977,2]
[401189313,1768031444243,-190.53827758,0.00016982,2]
[401189314,1768031444255,-196.55099073,0.00016982,2]
[401189315,1768031444265,-161.3110552,0.00016982,2]
[401189316,1768031444275,-170.88856341,0.00016982,2]
[401189317,1768031444285,-170.32473985,0.00016982,2]
[401189318,1768031444294,-150.0,0.00016985,2]
[401189319,1768031444304,-600.0,0.00016986,2]
[401189320,1768031444314,-50478.3,0.00016986,2]
[401189321,1768031444324,-150.0,0.00016994,2]
[401189322,1768031444334,-150.0,0.00016998,2]
[401189323,1768031444344,-190.53827758,0.00017,2]
[401189324,1768031444354,-196.55099073,0.00017,2]
[401189325,1768031444364,-161.3110552,0.00017,2]
[401189326,1768031444573,-170.88856341,0.00017,2]
[401189327,1768031444622,-150.0,0.00017,2]
[401189328,1768031444632,-2488.7346131,0.00017,2]
[401189329,1768031444642,-250.0,0.00017,2]
[401189330,1768031444652,-377.61,0.00017,2]
[401189331,1768031444662,-210.20353926,0.00017,2]
[401189332,1768031444673,-150.0,0.0001701,2]
[401189333,1768031444683,-150.0,0.00017013,2]
[401189334,1768031444693,-500.0,0.00017014,2]
[401189335,1768031444702,-190.53827758,0.00017018,2]
[401189336,1768031444713,-196.55099073,0.00017018,2]
[401189337,1768031444724,-161.3110552,0.00017018,2]
[401189338,1768031444736,-150.0,0.00017018,2]
[401189339,1768031444747,-170.88856341,0.00017018,2]
[401189340,1768031444758,-150.0,0.00017018,2]
[401189341,1768031444767,-150.0,0.00017031,2]
[401189342,1768031444777,-150.0,0.00017032,2]
[401189343,1768031444789,-190.53827758,0.00017036,2]
[401189344,1768031444800,-196.55099073,0.00017036,2]
[401189345,1768031444813,-161.3110552,0.00017036,2]
[401189346,1768031444823,-170.88856341,0.00017036,2]
[401189347,1768031444833,-150.0,0.00017039,2]
[401189348,1768031444843,-150.0,0.0001704,2]
[401189349,1768031444853,-482.91,0.00017041,2]
[401189350,1768031444863,-482.91,0.00017041,2]
[401189351,1768031444875,-481.4,0.00017041,2]
[401189352,1768031444885,-150.0,0.00017052,2]
[401189353,1768031444895,-190.53827758,0.00017055,2]
[401189354,1768031444905,-196.55099073,0.00017055,2]
[401189355,1768031444916,-161.3110552,0.00017055,2]
[401189356,1768031444925,-170.88856341,0.00017055,2]
[401189357,1768031444935,-150.0,0.00017059,2]
[401189358,1768031444945,-150.0,0.00017071,2]
[401189359,1768031444955,-190.53827758,0.00017073,2]
[401189360,1768031444965,-196.55099073,0.00017073,2]
[401189361,1768031444975,-161.3110552,0.00017073,2]
[401189362,1768031444984,-150.0,0.00017073,2]